Workbook

Sheet Instrucciones para dilegenciar
C1: PROCESO | I1: F2.P29.SA | K1: 2020-03-05
C2: SERVICIOS ADMINISTRATIVOS | I2: Versión 5 | K2: Página 1 de 2
C3: CRONOGRAMA DE EJECUCIÓN DEL PLAN DE GESTION AMBIENTAL | I3: Clasificación de la Información: Pública
B5: RECOMENDACIONES DE DILIGENCIAMIENTO PLAN DE GESTIÓN AMBIENTAL
C7: INFORMACIÓN TECNICA | H7: VALORES DE LAS ACTIVIDADES SEGÚN FRECUENCIAS DE REPORTES
C8: Cronograma mes de inicio | D8: Abril | H8: TIEMPO | I8: MESES | J8: REPRESENTACION
C9: Cronograma mes de final | D9: Diciembre | H9: MENSUAL | I9: 9 | J9: =+D12/I9 -> 0.1111111111
C10: Fecha de reporte | D10: 5 dias del mes siguiente | H10: BIMESTRAL | I10: 4 | J10: =+D12/I10 -> 0.25
C11: Tiempo total (meses) | D11: 9 | H11: TRIMESTRAL | I11: 3 | J11: =+D12/I11 -> 0.3333333333
C12: Representación total de la actividad | D12: 1 | H12: CUATRIMESTRAL | I12: 2 | J12: =+I12/D11 -> 0.2222222222
C13: Cortes de seguimiento semestrales, de la siguiente manera | D13: 1. Corte al 30 de Julio 2. Corte al 15 de diciembre | H13: SEMESTRAL | I13: 2 | J13: =+J12 -> 0.2222222222
H14: ANUAL | I14: 1 | J14: 1
C17: RECOMENDACIONES
C18: 1. Para el mes de abril se revisará y validará las evidencias de los meses de enero, febrero y marzo.
C19: 2. Los números de trabajaran con dos (2) decimas
C20: 3. Se efectuaran dos cortes semestrales, cada corte tendra un resultado y la gestión del año será la suma de los dos periodos.
C21: 4. El resultado final del primer semestre sera el dato de inicio para el segundo semestre, en caso de no haber realizado alguna actividad programada para el primer semestre no será posible su reporte. Para considerar el reporte de alguna actividad, se debe presentar la justificación que soporte el motivo del no realizar el reporte oportuno.
C22: 5. Se debe precisar el responsable de la actividad, no enmarcar al Referente Ambiental y al Coridnador Administrativo como unicos responsables de la implementación del cronograma de gestión ambiental
C23: 6. Si la actividad tiene una frecuencia Anual y en caso de desarrollarse mas de dos veces, se debe realizar un solo reporte y realizar el registro de las dos fechas.
C24: 7. Se debe realizar el diligenciamiento de la columna denominada "DESCRIPCION DE ACTIVIDADES", con un breve resumen de la gestion realizada mes a mes. Ejemplo: Abril: Jornada de socializaicon de clausulas contractuales con el hogar infantil XXXX Mayo: Participación de la jornada de inducción en la Regional
C25: 8. Incluir el número de filas que se consideren necesarias para dar cumplimiento a los programas del PGA formulado, en este caso es necesario tener presenta las formulas y si es necesario arrastrar las celdas para garantizar que la formulación quede registrado en la respectiva celda.
C26: 9. En la columna denominada"ACTIVIDADES EJECUTADAS POR PROGRAMA" se debe tener presente si se incorporaron nuevas filas, para que la formula que se aplica contanga las respectivas celdas.
C27: 10. La columna denominada "COMENTARIOS DE REVISION", es diligenciada exclusivamente por el profesional ambiental enlace de la sede de la Dirección General
C29: INDICES DE DESEMPEÑO
C30: 1. La meta de los indices de desempeño se definiran al principio de la vigencia.
C31: 2. Se debe diligenciar mensualmente y su seguimiento obedece a la frecuencia establecida.
C32: 3. El porcentaje de meta propuesta se debe cumplir al final de la vigencia.
C33: 4. El denominador del indice de sensibilizacion ambiental, será el promedio de los colaboradores de la vigencia anterior y sera fijo durante la vigencia.
C34: 5. La gestión de RAEE's y peligrosos solo serán los que gestione el profesional ambiental y no los incluidos en los contratos de almacen.
C35: 6. El indice de desempeño de consumo sostenible - papel, solo aplicará el reporte relacionado con la Sede de la Dirección General y la Regional con los Centros Zonales, este último siempre y cuando se cuente con la información.
C37: Nota: Los indicadores de agua y energia no estan incluidos dentro del los indices de desempeño ya que hacen parte del tablero de control.
B40: Antes de imprimir este documento… piense en el medio ambiente! Cualquier copia impresa de este documento se considera como COPIA NO CONTROLADA.
C67: ABRIL | D67: MAYO | E67: JUNIO | F67: JULIO | G67: AGOSTO | H67: SEPTIEMBRE | I67: OCTUBRE | J67: NOVIEMBRE | K67: DICIEMBRE
B68: MENSUAL
B69: BIMENSUAL
B70: TIRMESTRAL

Sheet PLAN_DE_GESTION
C1: PROCESO | AB1: F2.P29.SA | AD1: 2020-03-05
C2: SERVICIOS ADMINISTRATIVOS | AB2: Versión 5 | AD2: Página 1 de 6
C3: CRONOGRAMA DE EJECUCIÓN DEL PLAN DE GESTION AMBIENTAL | AB3: Clasificación de la Información: Pública
D6: 1, Regional | E6: SEDE DE LA DIRECCION GENERAL
D7: 2. Vigencia
D8: 3. Fecha de Corte | I8: 2020-01-30 | L8: 2020-02-28 | O8: 2020-03-30 | R8: 2020-04-30 | U8: 2020-05-30 | X8: 2020-06-30 | AA8: 2020-07-30 | AD8: GESTIÓN PRIMER SEMESTRE | AF8: 2020-08-30 | AI8: 2020-09-30 | AL8: 2020-10-30 | AO8: 2020-11-30 | AR8: 2020-12-30 | AU8: GESTIÓN SEGUNDO SEMESTRE
I11: GESTIÓN PRIMER SEMESTRE | AD11: ACUMULADO | AE11: % DE AVANCE I SEMESTRE | AF11: GESTIÓN SEGUNDO SEMESTRE | AU11: ACUMULADO | AV11: % DE AVANCE II SEMESTRE | AW11: FRECUENCIA | AX11: % POR ACTIVIDAD | AY11: GESTIÓN POR ACTIVIDADES ACUMULADA
A12: PROGRAMACIÓN | I12: ENERO | L12: FEBRERO | O12: MARZO | R12: ABRIL | U12: MAYO | X12: JUNIO | AA12: JULIO | AF12: AGOSTO | AI12: SEPTIEMBRE | AL12: OCTUBRE | AO12: NOVIEMBRE | AR12: DICIEMBRE | AZ12: ACTIVIDADES EJECUTADAS POR PROGRAMA | BA12: SEGUIMIENTO | BC12: COMENTARIOS DE REVISIÓN
A13: N° | B13: Programa Del PGA | C13: No. | D13: Actividades | E13: Responsable de la Actividad | F13: Periodicidad | G13: Fechas Programación Actividades | I13: Fecha Ejecución | J13: Estado Tarea | K13: Avance | L13: Fecha Ejecución | M13: Estado Tarea | N13: Avance | O13: Fecha Ejecución | P13: Estado Tarea | Q13: Avance | R13: Fecha Ejecución | S13: Estado Tarea | T13: Avance | U13: Fecha Ejecución | V13: Estado Tarea | W13: Avance | X13: Fecha Ejecución | Y13: Estado Tarea | Z13: Avance | AA13: Fecha Ejecución | AB13: Estado Tarea | AC13: Avance | AF13: Fecha Ejecución | AG13: Estado Tarea | AH13: Avance | AI13: Fecha Ejecución | AJ13: Estado Tarea | AK13: Avance | AL13: Fecha Ejecución | AM13: Estado Tarea | AN13: Avance | AO13: Fecha Ejecución | AP13: Estado Tarea | AQ13: Avance | AR13: Fecha Ejecución | AS13: Estado Tarea | AT13: Avance | BA13: Evidencia/ Registro | BB13: Descripción de la Actividad
G14: Fecha Inicio | H14: Fecha Final
A15: 1 | B15: COMUNICACIÓN Y SENSIBILIZACION AMBIENTAL | J15: =IF(D15=0,0,IF(G15=0,0,IF(H15=0,0,IF(I15>0,"C",IF($I$8<G15,0,IF($I$8>H15,"V","E")))))) -> 0 | K15: =IF(I15=0,0,IF($G$13>=I15,"CC","E")) -> 0 | M15: =IF(D15=0,0,IF(G15=0,0,IF(H15=0,0,IF(L15>0,"C",IF($L$8<G15,0,IF($L$8>H15,"V","E")))))) -> 0 | N15: =IF(L15=0,0,IF($G$13>=L15,"CC","E")) -> 0 | P15: =IF(D15=0,0,IF(G15=0,0,IF(H15=0,0,IF(O15>0,"C",IF($O$8<G15,0,IF($O$8>H15,"V","E")))))) -> 0 | Q15: =IF(O15=0,0,IF($G$13>=O15,"CC","E")) -> 0 | S15: =IF(D15=0,0,IF(G15=0,0,IF(H15=0,0,IF(R15>0,"C",IF($R$8<G15,0,IF($R$8>H15,"V","E")))))) -> 0 | T15: =IF(R15=0,0,IF($G$13>=R15,"CC","E")) -> 0 | V15: =IF(D15=0,0,IF(G15=0,0,IF(H15=0,0,IF(U15>0,"C",IF($U$8<G15,0,IF($U$8>H15,"V","E")))))) -> 0 | W15: =IF(U15=0,0,IF($G$13>=U15,"CC","E")) -> 0 | Y15: =IF(D15=0,0,IF(G15=0,0,IF(H15=0,0,IF(X15>0,"C",IF($X$8<G15,0,IF($X$8>H15,"V","E")))))) -> 0 | Z15: =IF(X15=0,0,IF($G$13>=X15,"CC","E")) -> 0 | AB15: =IF(D15=0,0,IF(G15=0,0,IF(H15=0,0,IF(AA15>0,"C",IF($AA$8<G15,0,IF($AA$8>H15,"V","E")))))) -> 0 | AC15: =IF(AA15=0,0,IF($G$13>=AA15,"CC","E")) -> 0 | AD15: =+COUNTIF(R15:AC15,"CC") -> 0 | AE15: =+IFERROR(AX15*AD15,0) -> 0 | AG15: =IF(D15=0,0,IF(G15=0,0,IF(H15=0,0,IF(AF15>0,"C",IF($AF$8<G15,0,IF($AF$8>H15,"V","E")))))) -> 0 | AH15: =IF(AF15=0,0,IF($G$13>=AF15,"CC","E")) -> 0 | AJ15: =IF(D15=0,0,IF(G15=0,0,IF(H15=0,0,IF(AI15>0,"C",IF($AI$8<G15,0,IF($AI$8>H15,"V","E")))))) -> 0 | AK15: =IF(AI15=0,0,IF($G$13>=AI15,"CC","E")) -> 0 | AM15: =IF(D15=0,0,IF(G15=0,0,IF(H15=0,0,IF(AL15>0,"C",IF($AL$8<G15,0,IF($AL$8>H15,"V","E")))))) -> 0 | AN15: =IF(AL15=0,0,IF($G$13>=AL15,"CC","E")) -> 0 | AP15: =IF(D15=0,0,IF(G15=0,0,IF(H15=0,0,IF(AO15>0,"C",IF($AO$8<G15,0,IF($AO$8>H15,"V","E")))))) -> 0 | AQ15: =IF(AO15=0,0,IF($G$13>=AO15,"CC","E")) -> 0 | AS15: =IF(D15=0,0,IF(G15=0,0,IF(H15=0,0,IF(AR15>0,"C",IF($AR$8<G15,0,IF($AR$8>H15,"V","E")))))) -> 0 | AT15: =IF(AR15=0,0,IF($G$13>=AR15,"CC","E")) -> 0 | AU15: =+COUNTIF(AF15:AT15,"CC") -> 0 | AV15: =+IFERROR(AX15*AU15,0) -> 0 | AW15: =+IF(F15="MENSUAL",9,IF(F15="BIMESTRAL",4,IF(F15="TRIMESTRAL",3,IF(F15="CUATRIMESTRAL",2,IF(F15="SEMESTRAL",2,IF(F15="ANUAL",1,0)))))) -> 0 | AX15: =IFERROR(1/AW15,0) -> 0 | AY15: =+AE15+AV15 -> 0 | AZ15: =+IFERROR(SUM(AY15:AY18),0) -> 0
J16: =IF(D16=0,0,IF(G16=0,0,IF(H16=0,0,IF(I16>0,"C",IF($I$8<G16,0,IF($I$8>H16,"V","E")))))) -> 0 | K16: =IF(I16=0,0,IF($G$13>=I16,"CC","E")) -> 0 | M16: =IF(D16=0,0,IF(G16=0,0,IF(H16=0,0,IF(L16>0,"C",IF($L$8<G16,0,IF($L$8>H16,"V","E")))))) -> 0 | N16: =IF(L16=0,0,IF($G$13>=L16,"CC","E")) -> 0 | P16: =IF(D16=0,0,IF(G16=0,0,IF(H16=0,0,IF(O16>0,"C",IF($O$8<G16,0,IF($O$8>H16,"V","E")))))) -> 0 | Q16: =IF(O16=0,0,IF($G$13>=O16,"CC","E")) -> 0 | S16: =IF(D16=0,0,IF(G16=0,0,IF(H16=0,0,IF(R16>0,"C",IF($R$8<G16,0,IF($R$8>H16,"V","E")))))) -> 0 | T16: =IF(R16=0,0,IF($G$13>=R16,"CC","E")) -> 0 | V16: =IF(D16=0,0,IF(G16=0,0,IF(H16=0,0,IF(U16>0,"C",IF($U$8<G16,0,IF($U$8>H16,"V","E")))))) -> 0 | W16: =IF(U16=0,0,IF($G$13>=U16,"CC","E")) -> 0 | Y16: =IF(D16=0,0,IF(G16=0,0,IF(H16=0,0,IF(X16>0,"C",IF($X$8<G16,0,IF($X$8>H16,"V","E")))))) -> 0 | Z16: =IF(X16=0,0,IF($G$13>=X16,"CC","E")) -> 0 | AB16: =IF(D16=0,0,IF(G16=0,0,IF(H16=0,0,IF(AA16>0,"C",IF($AA$8<G16,0,IF($AA$8>H16,"V","E")))))) -> 0 | AC16: =IF(AA16=0,0,IF($G$13>=AA16,"CC","E")) -> 0 | AD16: =+COUNTIF(R16:AC16,"CC") -> 0 | AE16: =+IFERROR(AX16*AD16,0) -> 0 | AG16: =IF(D16=0,0,IF(G16=0,0,IF(H16=0,0,IF(AF16>0,"C",IF($AF$8<G16,0,IF($AF$8>H16,"V","E")))))) -> 0 | AH16: =IF(AF16=0,0,IF($G$13>=AF16,"CC","E")) -> 0 | AJ16: =IF(D16=0,0,IF(G16=0,0,IF(H16=0,0,IF(AI16>0,"C",IF($AI$8<G16,0,IF($AI$8>H16,"V","E")))))) -> 0 | AK16: =IF(AI16=0,0,IF($G$13>=AI16,"CC","E")) -> 0 | AM16: =IF(D16=0,0,IF(G16=0,0,IF(H16=0,0,IF(AL16>0,"C",IF($AL$8<G16,0,IF($AL$8>H16,"V","E")))))) -> 0 | AN16: =IF(AL16=0,0,IF($G$13>=AL16,"CC","E")) -> 0 | AP16: =IF(D16=0,0,IF(G16=0,0,IF(H16=0,0,IF(AO16>0,"C",IF($AO$8<G16,0,IF($AO$8>H16,"V","E")))))) -> 0 | AQ16: =IF(AO16=0,0,IF($G$13>=AO16,"CC","E")) -> 0 | AS16: =IF(D16=0,0,IF(G16=0,0,IF(H16=0,0,IF(AR16>0,"C",IF($AR$8<G16,0,IF($AR$8>H16,"V","E")))))) -> 0 | AT16: =IF(AR16=0,0,IF($G$13>=AR16,"CC","E")) -> 0 | AU16: =+COUNTIF(AF16:AT16,"CC") -> 0 | AV16: =+IFERROR(AX16*AU16,0) -> 0 | AW16: =+IF(F16="MENSUAL",9,IF(F16="BIMESTRAL",4,IF(F16="TRIMESTRAL",3,IF(F16="CUATRIMESTRAL",2,IF(F16="SEMESTRAL",2,IF(F16="ANUAL",1,0)))))) -> 0 | AX16: =IFERROR(1/AW16,0) -> 0 | AY16: =+AE16+AV16 -> 0
J17: 0 | K17: 0 | M17: 0 | N17: 0 | P17: 0 | Q17: 0 | S17: 0 | T17: 0 | V17: 0 | W17: 0 | Y17: 0 | Z17: 0 | AB17: 0 | AC17: 0 | AD17: 0 | AE17: 0 | AG17: 0 | AH17: 0 | AJ17: 0 | AK17: 0 | AM17: 0 | AN17: 0 | AP17: 0 | AQ17: 0 | AS17: 0 | AT17: 0 | AU17: 0 | AV17: 0 | AW17: 0 | AX17: 0 | AY17: 0
J18: 0 | K18: 0 | M18: 0 | N18: 0 | P18: 0 | Q18: 0 | S18: 0 | T18: 0 | V18: 0 | W18: 0 | Y18: 0 | Z18: 0 | AB18: 0 | AC18: 0 | AD18: 0 | AE18: 0 | AG18: 0 | AH18: 0 | AJ18: 0 | AK18: 0 | AM18: 0 | AN18: 0 | AP18: 0 | AQ18: 0 | AS18: 0 | AT18: 0 | AU18: 0 | AV18: 0 | AW18: 0 | AX18: 0 | AY18: 0
A19: 2 | B19: MANEJO DE RESIDUOS SÓLIDOS | J19: 0 | K19: 0 | M19: 0 | N19: 0 | P19: 0 | Q19: 0 | S19: 0 | T19: 0 | V19: 0 | W19: 0 | Y19: 0 | Z19: 0 | AB19: 0 | AC19: 0 | AD19: 0 | AE19: 0 | AG19: 0 | AH19: 0 | AJ19: 0 | AK19: 0 | AM19: 0 | AN19: 0 | AP19: 0 | AQ19: 0 | AS19: 0 | AT19: 0 | AU19: 0 | AV19: 0 | AW19: 0 | AX19: 0 | AY19: 0 | AZ19: =+IFERROR(SUM(AY19:AY22),0) -> 0
J20: 0 | K20: 0 | M20: 0 | N20: 0 | P20: 0 | Q20: 0 | S20: 0 | T20: 0 | V20: 0 | W20: 0 | Y20: 0 | Z20: 0 | AB20: 0 | AC20: 0 | AD20: 0 | AE20: 0 | AG20: 0 | AH20: 0 | AJ20: 0 | AK20: 0 | AM20: 0 | AN20: 0 | AP20: 0 | AQ20: 0 | AS20: 0 | AT20: 0 | AU20: 0 | AV20: 0 | AW20: 0 | AX20: 0 | AY20: 0
J21: 0 | K21: 0 | M21: 0 | N21: 0 | P21: 0 | Q21: 0 | S21: 0 | T21: 0 | V21: 0 | W21: 0 | Y21: 0 | Z21: 0 | AB21: 0 | AC21: 0 | AD21: 0 | AE21: 0 | AG21: 0 | AH21: 0 | AJ21: 0 | AK21: 0 | AM21: 0 | AN21: 0 | AP21: 0 | AQ21: 0 | AS21: 0 | AT21: 0 | AU21: 0 | AV21: 0 | AW21: 0 | AX21: 0 | AY21: 0
J22: 0 | K22: 0 | M22: 0 | N22: 0 | P22: 0 | Q22: 0 | S22: 0 | T22: 0 | V22: 0 | W22: 0 | Y22: 0 | Z22: 0 | AB22: 0 | AC22: 0 | AD22: 0 | AE22: 0 | AG22: 0 | AH22: 0 | AJ22: 0 | AK22: 0 | AM22: 0 | AN22: 0 | AP22: 0 | AQ22: 0 | AS22: 0 | AT22: 0 | AU22: 0 | AV22: 0 | AW22: 0 | AX22: 0 | AY22: 0
A23: 3 | B23: MANEJO DE VERTIMIENTOS | J23: 0 | K23: 0 | M23: 0 | N23: 0 | P23: 0 | Q23: 0 | S23: 0 | T23: 0 | V23: 0 | W23: 0 | Y23: 0 | Z23: 0 | AB23: 0 | AC23: 0 | AD23: 0 | AE23: 0 | AG23: 0 | AH23: 0 | AJ23: 0 | AK23: 0 | AM23: 0 | AN23: 0 | AP23: 0 | AQ23: 0 | AS23: 0 | AT23: 0 | AU23: 0 | AV23: 0 | AW23: 0 | AX23: 0 | AY23: 0 | AZ23: =+IFERROR(SUM(AY23:AY26),0) -> 0
J24: 0 | K24: 0 | M24: 0 | N24: 0 | P24: 0 | Q24: 0 | S24: 0 | T24: 0 | V24: 0 | W24: 0 | Y24: 0 | Z24: 0 | AB24: 0 | AC24: 0 | AD24: 0 | AE24: 0 | AG24: 0 | AH24: 0 | AJ24: 0 | AK24: 0 | AM24: 0 | AN24: 0 | AP24: 0 | AQ24: 0 | AS24: 0 | AT24: 0 | AU24: 0 | AV24: 0 | AW24: 0 | AX24: 0 | AY24: 0
J25: 0 | K25: 0 | M25: 0 | N25: 0 | P25: 0 | Q25: 0 | S25: 0 | T25: 0 | V25: 0 | W25: 0 | Y25: 0 | Z25: 0 | AB25: 0 | AC25: 0 | AD25: 0 | AE25: 0 | AG25: 0 | AH25: 0 | AJ25: 0 | AK25: 0 | AM25: 0 | AN25: 0 | AP25: 0 | AQ25: 0 | AS25: 0 | AT25: 0 | AU25: 0 | AV25: 0 | AW25: 0 | AX25: 0 | AY25: 0
J26: 0 | K26: 0 | M26: 0 | N26: 0 | P26: 0 | Q26: 0 | S26: 0 | T26: 0 | V26: 0 | W26: 0 | Y26: 0 | Z26: 0 | AB26: 0 | AC26: 0 | AD26: 0 | AE26: 0 | AG26: 0 | AH26: 0 | AJ26: 0 | AK26: 0 | AM26: 0 | AN26: 0 | AP26: 0 | AQ26: 0 | AS26: 0 | AT26: 0 | AU26: 0 | AV26: 0 | AW26: 0 | AX26: 0 | AY26: 0
A27: 4 | B27: MANEJO DEL PARQUE AUTOMOTOR | J27: 0 | K27: 0 | M27: 0 | N27: 0 | P27: 0 | Q27: 0 | S27: 0 | T27: 0 | V27: 0 | W27: 0 | Y27: 0 | Z27: 0 | AB27: 0 | AC27: 0 | AD27: 0 | AE27: 0 | AG27: 0 | AH27: 0 | AJ27: 0 | AK27: 0 | AM27: 0 | AN27: 0 | AP27: 0 | AQ27: 0 | AS27: 0 | AT27: 0 | AU27: 0 | AV27: 0 | AW27: 0 | AX27: 0 | AY27: 0 | AZ27: =+IFERROR(SUM(AY27:AY30),0) -> 0
J28: 0 | K28: 0 | M28: 0 | N28: 0 | P28: 0 | Q28: 0 | S28: 0 | T28: 0 | V28: 0 | W28: 0 | Y28: 0 | Z28: 0 | AB28: 0 | AC28: 0 | AD28: 0 | AE28: 0 | AG28: 0 | AH28: 0 | AJ28: 0 | AK28: 0 | AM28: 0 | AN28: 0 | AP28: 0 | AQ28: 0 | AS28: 0 | AT28: 0 | AU28: 0 | AV28: 0 | AW28: 0 | AX28: 0 | AY28: 0
J29: 0 | K29: 0 | M29: 0 | N29: 0 | P29: 0 | Q29: 0 | S29: 0 | T29: 0 | V29: 0 | W29: 0 | Y29: 0 | Z29: 0 | AB29: 0 | AC29: 0 | AD29: 0 | AE29: 0 | AG29: 0 | AH29: 0 | AJ29: 0 | AK29: 0 | AM29: 0 | AN29: 0 | AP29: 0 | AQ29: 0 | AS29: 0 | AT29: 0 | AU29: 0 | AV29: 0 | AW29: 0 | AX29: 0 | AY29: 0
J30: 0 | K30: 0 | M30: 0 | N30: 0 | P30: 0 | Q30: 0 | S30: 0 | T30: 0 | V30: 0 | W30: 0 | Y30: 0 | Z30: 0 | AB30: 0 | AC30: 0 | AD30: 0 | AE30: 0 | AG30: 0 | AH30: 0 | AJ30: 0 | AK30: 0 | AM30: 0 | AN30: 0 | AP30: 0 | AQ30: 0 | AS30: 0 | AT30: 0 | AU30: 0 | AV30: 0 | AW30: 0 | AX30: 0 | AY30: 0
A31: 5 | B31: MANEJO DE ZONAS VERDES | J31: 0 | K31: 0 | M31: 0 | N31: 0 | P31: 0 | Q31: 0 | S31: 0 | T31: 0 | V31: 0 | W31: 0 | Y31: 0 | Z31: 0 | AB31: 0 | AC31: 0 | AD31: 0 | AE31: 0 | AG31: 0 | AH31: 0 | AJ31: 0 | AK31: 0 | AM31: 0 | AN31: 0 | AP31: 0 | AQ31: 0 | AS31: 0 | AT31: 0 | AU31: 0 | AV31: 0 | AW31: 0 | AX31: 0 | AY31: 0 | AZ31: =+IFERROR(SUM(AY31:AY34),0) -> 0
J32: 0 | K32: 0 | M32: 0 | N32: 0 | P32: 0 | Q32: 0 | S32: 0 | T32: 0 | V32: 0 | W32: 0 | Y32: 0 | Z32: 0 | AB32: 0 | AC32: 0 | AD32: 0 | AE32: 0 | AG32: 0 | AH32: 0 | AJ32: 0 | AK32: 0 | AM32: 0 | AN32: 0 | AP32: 0 | AQ32: 0 | AS32: 0 | AT32: 0 | AU32: 0 | AV32: 0 | AW32: 0 | AX32: 0 | AY32: 0
J33: 0 | K33: 0 | M33: 0 | N33: 0 | P33: 0 | Q33: 0 | S33: 0 | T33: 0 | V33: 0 | W33: 0 | Y33: 0 | Z33: 0 | AB33: 0 | AC33: 0 | AD33: 0 | AE33: 0 | AG33: 0 | AH33: 0 | AJ33: 0 | AK33: 0 | AM33: 0 | AN33: 0 | AP33: 0 | AQ33: 0 | AS33: 0 | AT33: 0 | AU33: 0 | AV33: 0 | AW33: 0 | AX33: 0 | AY33: 0
J34: 0 | K34: 0 | M34: 0 | N34: 0 | P34: 0 | Q34: 0 | S34: 0 | T34: 0 | V34: 0 | W34: 0 | Y34: 0 | Z34: 0 | AB34: 0 | AC34: 0 | AD34: 0 | AE34: 0 | AG34: 0 | AH34: 0 | AJ34: 0 | AK34: 0 | AM34: 0 | AN34: 0 | AP34: 0 | AQ34: 0 | AS34: 0 | AT34: 0 | AU34: 0 | AV34: 0 | AW34: 0 | AX34: 0 | AY34: 0
A35: 6 | B35: GESTION AMBIENTAL CONTRACTUAL | J35: 0 | K35: 0 | M35: 0 | N35: 0 | P35: 0 | Q35: 0 | S35: 0 | T35: 0 | V35: 0 | W35: 0 | Y35: 0 | Z35: 0 | AB35: 0 | AC35: 0 | AD35: 0 | AE35: 0 | AG35: 0 | AH35: 0 | AJ35: 0 | AK35: 0 | AM35: 0 | AN35: 0 | AP35: 0 | AQ35: 0 | AS35: 0 | AT35: 0 | AU35: 0 | AV35: 0 | AW35: 0 | AX35: 0 | AY35: 0 | AZ35: =+IFERROR(SUM(AY35:AY38),0) -> 0
J36: 0 | K36: 0 | M36: 0 | N36: 0 | P36: 0 | Q36: 0 | S36: 0 | T36: 0 | V36: 0 | W36: 0 | Y36: 0 | Z36: 0 | AB36: 0 | AC36: 0 | AD36: 0 | AE36: 0 | AG36: 0 | AH36: 0 | AJ36: 0 | AK36: 0 | AM36: 0 | AN36: 0 | AP36: 0 | AQ36: 0 | AS36: 0 | AT36: 0 | AU36: 0 | AV36: 0 | AW36: 0 | AX36: 0 | AY36: 0
J37: 0 | K37: 0 | M37: 0 | N37: 0 | P37: 0 | Q37: 0 | S37: 0 | T37: 0 | V37: 0 | W37: 0 | Y37: 0 | Z37: 0 | AB37: 0 | AC37: 0 | AD37: 0 | AE37: 0 | AG37: 0 | AH37: 0 | AJ37: 0 | AK37: 0 | AM37: 0 | AN37: 0 | AP37: 0 | AQ37: 0 | AS37: 0 | AT37: 0 | AU37: 0 | AV37: 0 | AW37: 0 | AX37: 0 | AY37: 0
J38: 0 | K38: 0 | M38: 0 | N38: 0 | P38: 0 | Q38: 0 | S38: 0 | T38: 0 | V38: 0 | W38: 0 | Y38: 0 | Z38: 0 | AB38: 0 | AC38: 0 | AD38: 0 | AE38: 0 | AG38: 0 | AH38: 0 | AJ38: 0 | AK38: 0 | AM38: 0 | AN38: 0 | AP38: 0 | AQ38: 0 | AS38: 0 | AT38: 0 | AU38: 0 | AV38: 0 | AW38: 0 | AX38: 0 | AY38: 0
A39: 7 | B39: CONSUMO SOSTENIBLE | J39: 0 | K39: 0 | M39: 0 | N39: 0 | P39: 0 | Q39: 0 | S39: 0 | T39: 0 | V39: 0 | W39: 0 | Y39: 0 | Z39: 0 | AB39: 0 | AC39: 0 | AD39: 0 | AE39: 0 | AG39: 0 | AH39: 0 | AJ39: 0 | AK39: 0 | AM39: 0 | AN39: 0 | AP39: 0 | AQ39: 0 | AS39: 0 | AT39: 0 | AU39: 0 | AV39: 0 | AW39: 0 | AX39: 0 | AY39: 0 | AZ39: =+IFERROR(SUM(AY39:AY42),0) -> 0
J40: 0 | K40: 0 | M40: 0 | N40: 0 | P40: 0 | Q40: 0 | S40: 0 | T40: 0 | V40: 0 | W40: 0 | Y40: 0 | Z40: 0 | AB40: 0 | AC40: 0 | AD40: 0 | AE40: 0 | AG40: 0 | AH40: 0 | AJ40: 0 | AK40: 0 | AM40: 0 | AN40: 0 | AP40: 0 | AQ40: 0 | AS40: 0 | AT40: 0 | AU40: 0 | AV40: 0 | AW40: 0 | AX40: 0 | AY40: 0
J41: 0 | K41: 0 | M41: 0 | N41: 0 | P41: 0 | Q41: 0 | S41: 0 | T41: 0 | V41: 0 | W41: 0 | Y41: 0 | Z41: 0 | AB41: 0 | AC41: 0 | AD41: 0 | AE41: 0 | AG41: 0 | AH41: 0 | AJ41: 0 | AK41: 0 | AM41: 0 | AN41: 0 | AP41: 0 | AQ41: 0 | AS41: 0 | AT41: 0 | AU41: 0 | AV41: 0 | AW41: 0 | AX41: 0 | AY41: 0
J42: 0 | K42: 0 | M42: 0 | N42: 0 | P42: 0 | Q42: 0 | S42: 0 | T42: 0 | V42: 0 | W42: 0 | Y42: 0 | Z42: 0 | AB42: 0 | AC42: 0 | AD42: 0 | AE42: 0 | AG42: 0 | AH42: 0 | AJ42: 0 | AK42: 0 | AM42: 0 | AN42: 0 | AP42: 0 | AQ42: 0 | AS42: 0 | AT42: 0 | AU42: 0 | AV42: 0 | AW42: 0 | AX42: 0 | AY42: 0
A43: 8 | B43: CALIDAD DEL AIRE (AIRE - RUIDO -PEV) | J43: 0 | K43: 0 | M43: 0 | N43: 0 | P43: 0 | Q43: 0 | S43: 0 | T43: 0 | V43: 0 | W43: 0 | Y43: 0 | Z43: 0 | AB43: 0 | AC43: 0 | AD43: 0 | AE43: 0 | AG43: 0 | AH43: 0 | AJ43: 0 | AK43: 0 | AM43: 0 | AN43: 0 | AP43: 0 | AQ43: 0 | AS43: 0 | AT43: 0 | AU43: 0 | AV43: 0 | AW43: 0 | AX43: 0 | AY43: 0 | AZ43: =+IFERROR(SUM(AY43:AY46),0) -> 0
J44: 0 | K44: 0 | M44: 0 | N44: 0 | P44: 0 | Q44: 0 | S44: 0 | T44: 0 | V44: 0 | W44: 0 | Y44: 0 | Z44: 0 | AB44: 0 | AC44: 0 | AD44: 0 | AE44: 0 | AG44: 0 | AH44: 0 | AJ44: 0 | AK44: 0 | AM44: 0 | AN44: 0 | AP44: 0 | AQ44: 0 | AS44: 0 | AT44: 0 | AU44: 0 | AV44: 0 | AW44: 0 | AX44: 0 | AY44: 0
J45: 0 | K45: 0 | M45: 0 | N45: 0 | P45: 0 | Q45: 0 | S45: 0 | T45: 0 | V45: 0 | W45: 0 | Y45: 0 | Z45: 0 | AB45: 0 | AC45: 0 | AD45: 0 | AE45: 0 | AG45: 0 | AH45: 0 | AJ45: 0 | AK45: 0 | AM45: 0 | AN45: 0 | AP45: 0 | AQ45: 0 | AS45: 0 | AT45: 0 | AU45: 0 | AV45: 0 | AW45: 0 | AX45: 0 | AY45: 0
J46: 0 | K46: 0 | M46: 0 | N46: 0 | P46: 0 | Q46: 0 | S46: 0 | T46: 0 | V46: 0 | W46: 0 | Y46: 0 | Z46: 0 | AB46: 0 | AC46: 0 | AD46: 0 | AE46: 0 | AG46: 0 | AH46: 0 | AJ46: 0 | AK46: 0 | AM46: 0 | AN46: 0 | AP46: 0 | AQ46: 0 | AS46: 0 | AT46: 0 | AU46: 0 | AV46: 0 | AW46: 0 | AX46: 0 | AY46: 0
A47: 9 | B47: SITUACIONES DE EMERGENCIA AMBIENTAL | J47: 0 | K47: 0 | M47: 0 | N47: 0 | P47: 0 | Q47: 0 | S47: 0 | T47: 0 | V47: 0 | W47: 0 | Y47: 0 | Z47: 0 | AB47: 0 | AC47: 0 | AD47: 0 | AE47: 0 | AG47: 0 | AH47: 0 | AJ47: 0 | AK47: 0 | AM47: 0 | AN47: 0 | AP47: 0 | AQ47: 0 | AS47: 0 | AT47: 0 | AU47: 0 | AV47: 0 | AW47: 0 | AX47: 0 | AY47: 0 | AZ47: =+IFERROR(SUM(AY47:AY50),0) -> 0
J48: 0 | K48: 0 | M48: 0 | N48: 0 | P48: 0 | Q48: 0 | S48: 0 | T48: 0 | V48: 0 | W48: 0 | Y48: 0 | Z48: 0 | AB48: 0 | AC48: 0 | AD48: 0 | AE48: 0 | AG48: 0 | AH48: 0 | AJ48: 0 | AK48: 0 | AM48: 0 | AN48: 0 | AP48: 0 | AQ48: 0 | AS48: 0 | AT48: 0 | AU48: 0 | AV48: 0 | AW48: 0 | AX48: 0 | AY48: 0
J49: 0 | K49: 0 | M49: 0 | N49: 0 | P49: 0 | Q49: 0 | S49: 0 | T49: 0 | V49: 0 | W49: 0 | Y49: 0 | Z49: 0 | AB49: 0 | AC49: 0 | AD49: 0 | AE49: 0 | AG49: 0 | AH49: 0 | AJ49: 0 | AK49: 0 | AM49: 0 | AN49: 0 | AP49: 0 | AQ49: 0 | AS49: 0 | AT49: 0 | AU49: 0 | AV49: 0 | AW49: 0 | AX49: 0 | AY49: 0
J50: 0 | K50: 0 | M50: 0 | N50: 0 | P50: 0 | Q50: 0 | S50: 0 | T50: 0 | V50: 0 | W50: 0 | Y50: 0 | Z50: 0 | AB50: 0 | AC50: 0 | AD50: 0 | AE50: 0 | AG50: 0 | AH50: 0 | AJ50: 0 | AK50: 0 | AM50: 0 | AN50: 0 | AP50: 0 | AQ50: 0 | AS50: 0 | AT50: 0 | AU50: 0 | AV50: 0 | AW50: 0 | AX50: 0 | AY50: 0
A51: 10 | B51: PROCESO CONTRACTUAL | J51: 0 | K51: 0 | M51: 0 | N51: 0 | P51: 0 | Q51: 0 | S51: 0 | T51: 0 | V51: 0 | W51: 0 | Y51: 0 | Z51: 0 | AB51: 0 | AC51: 0 | AD51: 0 | AE51: 0 | AG51: 0 | AH51: 0 | AJ51: 0 | AK51: 0 | AM51: 0 | AN51: 0 | AP51: 0 | AQ51: 0 | AS51: 0 | AT51: 0 | AU51: 0 | AV51: 0 | AW51: 0 | AX51: 0 | AY51: 0 | AZ51: =+IFERROR(SUM(AY51:AY54),0) -> 0
J52: 0 | K52: 0 | M52: 0 | N52: 0 | P52: 0 | Q52: 0 | S52: 0 | T52: 0 | V52: 0 | W52: 0 | Y52: 0 | Z52: 0 | AB52: 0 | AC52: 0 | AD52: 0 | AE52: 0 | AG52: 0 | AH52: 0 | AJ52: 0 | AK52: 0 | AM52: 0 | AN52: 0 | AP52: 0 | AQ52: 0 | AS52: 0 | AT52: 0 | AU52: 0 | AV52: 0 | AW52: 0 | AX52: 0 | AY52: 0
J53: 0 | K53: 0 | M53: 0 | N53: 0 | P53: 0 | Q53: 0 | S53: 0 | T53: 0 | V53: 0 | W53: 0 | Y53: 0 | Z53: 0 | AB53: 0 | AC53: 0 | AD53: 0 | AE53: 0 | AG53: 0 | AH53: 0 | AJ53: 0 | AK53: 0 | AM53: 0 | AN53: 0 | AP53: 0 | AQ53: 0 | AS53: 0 | AT53: 0 | AU53: 0 | AV53: 0 | AW53: 0 | AX53: 0 | AY53: 0
J54: 0 | K54: 0 | M54: 0 | N54: 0 | P54: 0 | Q54: 0 | S54: 0 | T54: 0 | V54: 0 | W54: 0 | Y54: 0 | Z54: 0 | AB54: 0 | AC54: 0 | AD54: 0 | AE54: 0 | AG54: 0 | AH54: 0 | AJ54: 0 | AK54: 0 | AM54: 0 | AN54: 0 | AP54: 0 | AQ54: 0 | AS54: 0 | AT54: 0 | AU54: 0 | AV54: 0 | AW54: 0 | AX54: 0 | AY54: 0
B58: CUADRO RESUMEN ACTIVIDADES CUMPLIDAS | U58: RESUMEN GENERAL
B59: Programa del PGA | C59: Número Actividades | D59: ENERO | E59: FEBRERO | F59: MARZO | G59: ABRIL | H59: MAYO | I59: JUNIO | J59: JULIO | K59: AGOSTO | M59: SEPTIEMBRE | O59: OCTUBRE | P59: NOVIEMBRE | R59: DICIEMBRE | U59: ACUMULADO GENERAL | W59: Avance por programa | AA59: Logros Periodicos
B60: Programa No. 1 | C60: =COUNTA(C15:C18) -> 0 | D60: =COUNTIF(K15:K18,"CC") -> 0 | E60: =COUNTIF(N15:N18,"CC") -> 0 | F60: =COUNTIF(Q15:Q18,"CC") -> 0 | G60: =COUNTIF(T15:T18,"CC") -> 0 | H60: =COUNTIF(W15:W18,"CC") -> 0 | I60: =COUNTIF(Z15:Z18,"cC") -> 0 | J60: =COUNTIF(AC15:AC18,"Cc") -> 0 | K60: =COUNTIF(AH15:AH18,"Cc") -> 0 | M60: =COUNTIF(AK15:AK18,"CC") -> 0 | O60: =COUNTIF(AM15:AM18,"CC") -> 0 | P60: =COUNTIF(AQ15:AQ18,"CC") -> 0 | R60: =COUNTIF(AT15:AT18,"CC") -> 0 | U60: =+AZ15 -> 0 | W60: =IFERROR(U60/C60,0) -> 0 | AA60: I PERIODO DE MARZO A JUNIO
B61: Programa No. 2 | C61: =COUNTA(C19:C22) -> 0 | D61: =COUNTIF(K19:K22,"C") -> 0 | E61: =COUNTIF(N19:N22,"CC") -> 0 | F61: =COUNTIF(Q19:Q22,"CC") -> 0 | G61: =COUNTIF(T19:T22,"CC") -> 0 | H61: =COUNTIF(W19:W22,"CC") -> 0 | I61: =COUNTIF(Z19:Z22,"cC") -> 0 | J61: =COUNTIF(AC19:AC22,"cC") -> 0 | K61: =COUNTIF(AH19:AH22,"cC") -> 0 | M61: =COUNTIF(AK19:AK22,"CC") -> 0 | N61: =COUNTIF(V19:V22,"C") -> 0 | O61: =COUNTIF(AM19:AM22,"CC") -> 0 | P61: =COUNTIF(AQ19:AQ22,"CC") -> 0 | Q61: =COUNTIF(Y19:Y22,"C") -> 0 | R61: =COUNTIF(AT19:AT22,"CC") -> 0 | U61: =+AZ19 -> 0 | W61: =IFERROR(U61/C61,0) -> 0
B62: Programa No. 3 | C62: =COUNTA(C23:C26) -> 0 | D62: =COUNTIF(K23:K26,"CC") -> 0 | E62: =COUNTIF(N23:N26,"Cc") -> 0 | F62: =COUNTIF(Q23:Q26,"CC") -> 0 | G62: =COUNTIF(T23:T26,"CC") -> 0 | H62: =COUNTIF(W23:W26,"CC") -> 0 | I62: =COUNTIF(Z23:Z26,"Cc") -> 0 | J62: =COUNTIF(AC23:AC26,"cC") -> 0 | K62: =COUNTIF(AH23:AH26,"cC") -> 0 | M62: =COUNTIF(AK23:AK26,"CC") -> 0 | N62: =COUNTIF(V23:V26,"C") -> 0 | O62: =COUNTIF(AM23:AM26,"CC") -> 0 | P62: =COUNTIF(AQ23:AQ26,"CC") -> 0 | Q62: =COUNTIF(Y23:Y26,"C") -> 0 | R62: =COUNTIF(AT23:AT26,"CC") -> 0 | U62: =+AZ23 -> 0 | W62: 0
B63: Programa No. 4 | C63: =COUNTA(C27:C30) -> 0 | D63: =COUNTIF(K27:K30,"CC") -> 0 | E63: =COUNTIF(N27:N30,"CC") -> 0 | F63: =COUNTIF(Q27:Q30,"CC") -> 0 | G63: =COUNTIF(T27:T30,"CC") -> 0 | H63: =COUNTIF(W27:W30,"CC") -> 0 | I63: =COUNTIF(Z27:Z30,"Cc") -> 0 | J63: =COUNTIF(AC27:AC30,"cC") -> 0 | K63: =COUNTIF(AH27:AH30,"cC") -> 0 | M63: =COUNTIF(AK27:AK30,"CC") -> 0 | N63: =COUNTIF(V27:V30,"C") -> 0 | O63: =COUNTIF(AM27:AM30,"CC") -> 0 | P63: =COUNTIF(AQ27:AQ30,"CC") -> 0 | Q63: =COUNTIF(Y27:Y30,"C") -> 0 | R63: =COUNTIF(AT27:AT30,"CC") -> 0 | U63: =+AZ27 -> 0 | W63: 0
B64: Programa No. 5 | C64: =COUNTA(C31:C34) -> 0 | D64: =COUNTIF(K31:K34,"CC") -> 0 | E64: =COUNTIF(N31:N34,"CC") -> 0 | F64: =COUNTIF(Q31:Q34,"CC") -> 0 | G64: =COUNTIF(T31:T34,"CC") -> 0 | H64: =COUNTIF(W31:W34,"CC") -> 0 | I64: =COUNTIF(Z31:Z34,"cC") -> 0 | J64: =COUNTIF(AC31:AC34,"cC") -> 0 | K64: =COUNTIF(AH31:AH34,"cC") -> 0 | M64: =COUNTIF(AK31:AK34,"CC") -> 0 | N64: =COUNTIF(V31:V34,"C") -> 0 | O64: =COUNTIF(AM31:AM34,"CC") -> 0 | P64: =COUNTIF(AQ31:AQ34,"CC") -> 0 | Q64: =COUNTIF(Y31:Y34,"C") -> 0 | R64: =COUNTIF(AT31:AT34,"CC") -> 0 | U64: =+AZ31 -> 0 | W64: 0 | AA64: II PERIODO DE JULIO A SEPTIEMBRE
B65: Programa No. 6 | C65: =COUNTA(C35:C38) -> 0 | D65: =COUNTIF(K35:K38,"CC") -> 0 | E65: =COUNTIF(N35:N38,"CC") -> 0 | F65: =COUNTIF(Q35:Q38,"CC") -> 0 | G65: =COUNTIF(T35:T38,"CC") -> 0 | H65: =COUNTIF(W35:W38,"CC") -> 0 | I65: =COUNTIF(Z35:Z38,"cC") -> 0 | J65: =COUNTIF(AC35:AC38,"cC") -> 0 | K65: =COUNTIF(AH35:AH38,"cC") -> 0 | M65: =COUNTIF(AK35:AK38,"CC") -> 0 | N65: =COUNTIF(V35:V38,"C") -> 0 | O65: =COUNTIF(AM35:AM38,"CC") -> 0 | P65: =COUNTIF(AQ35:AQ38,"CC") -> 0 | Q65: =COUNTIF(Y35:Y38,"C") -> 0 | R65: =COUNTIF(AT35:AT38,"CC") -> 0 | U65: =+AZ35 -> 0 | W65: 0
B66: Programa No. 7 | C66: =COUNTA(C39:C42) -> 0 | D66: =COUNTIF(K39:K42,"CC") -> 0 | E66: =COUNTIF(N39:N42,"CC") -> 0 | F66: =COUNTIF(Q39:Q42,"CC") -> 0 | G66: =COUNTIF(T39:T42,"CC") -> 0 | H66: =COUNTIF(W39:W42,"CC") -> 0 | I66: =COUNTIF(Z39:Z42,"CC") -> 0 | J66: =COUNTIF(AC39:AC42,"cC") -> 0 | K66: =COUNTIF(AH39:AH42,"cC") -> 0 | M66: =COUNTIF(AK39:AK42,"CC") -> 0 | N66: =COUNTIF(V39:V42,"C") -> 0 | O66: =COUNTIF(AM39:AM42,"CC") -> 0 | P66: =COUNTIF(AQ39:AQ42,"CC") -> 0 | Q66: =COUNTIF(Y39:Y42,"C") -> 0 | R66: =COUNTIF(AT39:AT42,"CC") -> 0 | U66: =+AZ39 -> 0 | W66: 0
B67: Programa No. 8 | C67: =COUNTA(C43:C46) -> 0 | D67: =COUNTIF(K43:K46,"CC") -> 0 | E67: =COUNTIF(N43:N46,"CC") -> 0 | F67: =COUNTIF(Q43:Q46,"CC") -> 0 | G67: =COUNTIF(T43:T46,"CC") -> 0 | H67: =COUNTIF(W43:W46,"CC") -> 0 | I67: =COUNTIF(Z43:Z46,"CC") -> 0 | J67: =COUNTIF(AC43:AC46,"Cc") -> 0 | K67: =COUNTIF(AH43:AH46,"Cc") -> 0 | M67: =COUNTIF(AK43:AK46,"CC") -> 0 | N67: =COUNTIF(V43:V46,"C") -> 0 | O67: =COUNTIF(AM43:AM46,"CC") -> 0 | P67: =COUNTIF(AQ43:AQ46,"CC") -> 0 | Q67: =COUNTIF(Y43:Y46,"C") -> 0 | R67: =COUNTIF(AT43:AT46,"CC") -> 0 | U67: =+AZ43 -> 0 | W67: 0
B68: Programa No. 9 | C68: =COUNTA(C47:C50) -> 0 | D68: =COUNTIF(K47:K50,"CC") -> 0 | E68: =COUNTIF(N47:N50,"CC") -> 0 | F68: =COUNTIF(Q47:Q50,"CC") -> 0 | G68: =COUNTIF(T47:T50,"CC") -> 0 | H68: =COUNTIF(W47:W50,"CC") -> 0 | I68: =COUNTIF(Z47:Z50,"CC") -> 0 | J68: =COUNTIF(AC47:AC50,"Cc") -> 0 | K68: =COUNTIF(AH47:AH50,"Cc") -> 0 | M68: =COUNTIF(AK47:AK50,"CC") -> 0 | N68: =COUNTIF(V47:V50,"C") -> 0 | O68: =COUNTIF(AN47:AN50,"CC") -> 0 | P68: =COUNTIF(AQ47:AQ50,"CC") -> 0 | Q68: =COUNTIF(Y47:Y50,"C") -> 0 | R68: =COUNTIF(AT47:AT50,"CC") -> 0 | U68: =+AZ47 -> 0 | W68: 0 | AA68: III PERIODO DE OCTUBRE A DICIEMBRE
B69: Programa No. 10 | C69: =COUNTA(C51:C54) -> 0 | D69: =COUNTIF(K51:K54,"CC") -> 0 | E69: =COUNTIF(N51:N54,"CC") -> 0 | F69: =COUNTIF(Q51:Q54,"CC") -> 0 | G69: =COUNTIF(T51:T54,"CC") -> 0 | H69: =COUNTIF(W51:W54,"CC") -> 0 | I69: =COUNTIF(Z51:Z54,"CC") -> 0 | J69: =COUNTIF(AC51:AC54,"CC") -> 0 | K69: =COUNTIF(AH51:AH54,"CC") -> 0 | M69: =COUNTIF(AK51:AK54,"CC") -> 0 | N69: =COUNTIF(#REF!,"C") ->  | O69: =COUNTIF(AN51:AN54,"CC") -> 0 | P69: =COUNTIF(AQ51:AQ54,"CC") -> 0 | Q69: =COUNTIF(#REF!,"C") ->  | R69: =COUNTIF(AT51:AT54,"CC") -> 0 | U69: =+AZ51 -> 0 | W69: 0
U70: =+SUM(U60:W69) -> 0
C72: AVANCE TOTAL
B73: TOTAL DE ACTIVIDADES | C73: =+SUM(C60:C69) -> 0 | D73: =+U70 -> 0 | E73: =+IFERROR(D73/C73,0) -> 0
B77: OBSERVACIONES
B96: INCLUIDO EN EL PLAN OPERATIVO POR ACTIVIDAD
B97: NO ICLUIDO PERO ACTIVIDAD PUNTUAL
B98: NO INCLUIDO DEPENDE DE INFORMACION DE LA SEDE NACIONAL
DH326: =IF(VLOOKUP($DI$326,#REF!,DK326,FALSE)=0,"",VLOOKUP($DI$326,$BQ$330:$CT$3093,DK326,FALSE)) ->  | DI326: =+E6 -> SEDE DE LA DIRECCION GENERAL | DJ326: =IF(VLOOKUP($DI$326,#REF!,DK326,FALSE)=0,"",VLOOKUP($DI$326,#REF!,DK326,FALSE)) ->  | DK326: 2
DH327: =IF(VLOOKUP($DI$326,#REF!,DK327,FALSE)=0,"",VLOOKUP($DI$326,$BQ$330:$CT$3093,DK327,FALSE)) ->  | DJ327: =IF(VLOOKUP($DI$326,#REF!,DK327,FALSE)=0,"",VLOOKUP($DI$326,#REF!,DK327,FALSE)) ->  | DK327: 3
DH328: =IF(VLOOKUP($DI$326,#REF!,DK328,FALSE)=0,"",VLOOKUP($DI$326,$BQ$330:$CT$3093,DK328,FALSE)) ->  | DJ328: =IF(VLOOKUP($DI$326,#REF!,DK328,FALSE)=0,"",VLOOKUP($DI$326,#REF!,DK328,FALSE)) ->  | DK328: 4
DH329: =IF(VLOOKUP($DI$326,#REF!,DK329,FALSE)=0,"",VLOOKUP($DI$326,$BQ$330:$CT$3093,DK329,FALSE)) ->  | DJ329: =IF(VLOOKUP($DI$326,#REF!,DK329,FALSE)=0,"",VLOOKUP($DI$326,#REF!,DK329,FALSE)) ->  | DK329: 5
BQ331: AMAZONAS
BQ332: ANTIOQUIA
BQ333: ARAUCA
BQ334: ATLANTICO
BQ335: BOGOTA
BQ336: BOLIVAR
BQ337: BOYACA
BQ338: CALDAS
BQ339: CAQUETA
BQ340: CASANARE
BQ341: CAUCA
BQ342: CESAR
BQ343: CHOCO
BQ344: CORDOBA
BQ345: CUNDINAMARCA
BQ346: GUAJIRA
BQ347: GUANIA
BQ348: GUAVIARE
BQ349: HUILA
BQ350: MAGDALENA
BQ351: META
BQ352: NARIÑO
BQ353: NORTE DE SANTANDER
BQ354: PUTUMAYO
BQ355: QUINDIO
BQ356: RISARALDA
BQ357: SAN ANDRES
BQ358: SANTANDER
BQ359: SEDE DE LA DIRECCION GENERAL
BQ360: SUCRE
BQ361: TOLIMA
BQ362: VALLE
BQ363: VAUPES
BQ364: VICHADA

Sheet RECURSOS GESTION AMBIENTAL
C1: PROCESO | V1: F2.P29.SA | X1: 2020-03-05
C2: SERVICIOS ADMINISTRATIVOS | V2: Versión 5 | X2: Página 1 de 2
C3: CRONOGRAMA DE EJECUCIÓN DEL PLAN DE GESTION AMBIENTAL | V3: Clasificación de la Información: Pública
C5: ASIGNACION PRESUPUESTAL (Apropiación Inicial) | G5: % de Ejecución del Mes | K5: ESTADO | L5: % de Cumplimiento | AB5: 6 | AC5: OPTIMO | AD5: 0.95 | AE5: 1
C6: ADICIONES | G6: % de Ejecución | I6: =+D8/D7 ->  | L6: Agosto | M6: Septiembre | N6: Octubre | O6: Noviembre | AB6: 5 | AC6: RIESGO | AD6: 0.901 | AE6: 0.949
C7: TOTAL APROPIACION VIGENTE | D7: =+(D6+D5)-D10 -> 0 | K7: OPTIMO | L7: 85% - 100% | M7: 90% - 100% | N7: 1 | O7: 1 | AB7: 4 | AC7: RIESGO | AD7: 0.85 | AE7: 0.9
C8: VALOR CONTRATOS | D8: =+J25 -> 0 | K8: ADECUADO | L8: 75% - 84,9% | M8: 80% - 89,9% | N8: 85% - 99,9% | O8: 85% - 99,9% | AB8: 3 | AC8: CRITICO | AD8: 0.3501 | AE8: 0.849
C9: SALDO | D9: =+(D5-D8) -> 0 | K9: RIESGO | L9: 50% - 74,9% | M9: 60% - 79,9% | N9: 80% - 84,9% | O9: 80% - 84,9%
C10: LIBERACIÓN | K10: CRITICO | L10: 0 - 49,9% | M10: 0-59,9% | N10: 0% - 79,9% | O10: 0% - 79,9%
AB12: 2 | AC12: CRITICO | AD12: 0 | AE12: 0.35
A13: ITEM | B13: PROGRAMA DEL PGA | C13: DESCRIPCION DE ELEMENTOS | D13: Asignación Presupuestal Según Plan de Compras | E13: DESCRIPCION DE LA CONTRATACIÓN | K13: PAGOS EJECUTADOS | W13: RESUMEN DE EJECUCIÓN | Y13: Análisis y Observaciones
E14: Objeto | F14: Convenio /Contrato No | G14: Fecha Inicio | H14: Fecha Terminacion | I14: TIEMPO DE EJECUCION (MESES) | J14: VALOR COMPRA ($) | K14: ENERO | L14: FEBRERO | M14: MARZO | N14: ABRIL | O14: MAYO | P14: JUNIO | Q14: JULIO | R14: AGOSTO | S14: SEPTIEMBRE | T14: OCTUBRE | U14: NOVIEMBRE | V14: DICIEMBRE | W14: TOTAL DE PAGOS | X14: SALDO POR PAGAR
A15: 1 | I15: =DATEDIF(G15,H15,"M") -> 0 | K15: 0 | L15: 0 | M15: 0 | W15: =+SUM(K15:V15) -> 0 | X15: =+J15-W15 -> 0
A16: 2 | I16: =DATEDIF(G16,H16,"M") -> 0 | W16: =+SUM(K16:V16) -> 0 | X16: 0
A17: 3 | I17: 0 | W17: =+SUM(K17:V17) -> 0 | X17: 0
A18: 4 | I18: 0 | W18: 0 | X18: 0
A19: 5 | I19: 0 | W19: 0 | X19: 0
A20: 6 | I20: 0 | W20: 0 | X20: 0
A21: 7 | I21: 0 | W21: =+SUM(K21:V21) -> 0 | X21: 0
A22: 8 | I22: 0 | W22: =+SUM(K22:V22) -> 0 | X22: 0
A23: 9 | I23: 0 | W23: =+SUM(K23:V23) -> 0 | X23: 0
A24: 10 | I24: 0 | W24: 0 | X24: 0
A25: TOTALES | J25: =+SUM(J14:J24) -> 0 | K25: =+SUM(K15:K24) -> 0 | L25: =+SUM(L15:L24) -> 0 | M25: 0 | N25: 0 | O25: 0 | P25: 0 | Q25: 0 | R25: 0 | S25: 0 | T25: 0 | U25: 0 | V25: 0 | W25: =+SUM(K25:V25) -> 0
A26: LIBERACION DE RECURSOS Fecha de Devolución (dia/mes/año) | J26: =+D10 -> 0 | W26: =+SUM(W15:W24) -> 0 | X26: =+SUM(X15:X24) -> 0
B28: Antes de imprimir este documento… piense en el medio ambiente! Cualquier copia impresa de este documento se considera como COPIA NO CONTROLADA.

Sheet Hoja1 (hidden)
A1: CUADRO DE PONDERACION
A2: PROGRAMA | B2: %
A3: comunicación | B3: 0.05
A4: infraestructura | B4: 0.2
A5: residuos | B5: 0.2
A6: automotor | B6: 0.15
A7: zonas verdes | B7: 0.1
A8: sustancias | B8: 0.1
A9: vertimientos | B9: 0.15
A10: seguimiento | B10: 0.05
A11: TOTAL | B11: =+SUM(B3:B10) -> 1

Sheet IND AMBIENTALES
C1: PROCESO | AG1: F2.P29.SA | AI1: 2020-03-05
C2: SERVICIOS ADMINISTRATIVOS | AG2: Versión 5 | AI2: Página 1 de 2
C3: CRONOGRAMA DE EJECUCIÓN DEL PLAN DE GESTION AMBIENTAL | AG3: Clasificación de la Información: Pública
A4: INDICES DE DESEMPEÑO AMBIENTAL
A5: Recomendaciones para el reporte de índices: A continuación, encontrará las recomendaciones a tener en cuenta para cada uno de los índices, con el fin de precisar la información a reportar y la metodología de cálculo para cada uno de ellos. La información presentada en el cuadro, corresponde a datos aleatorios para guia de diligenciamiento. Nota: La frecuencia de corte para estos indices es cuatrimestral, sin embargo, se deben realizar los reportes mensuales; en caso que no se tenga información se debe colocar cero (0). | C5: SENSIBILIZACION AMBIENTAL | D5: 1. En la columna denominada "Datos de promedio / Línea base" se debe colocar el número promedio de colaboradores de la vigencia anterior. Este dato se actualizará automaticamente en los espacios de cada uno de los meses asociados al denominador. 2. En la columna de denominada "Resultado I Corte", se obtendra el resultado promedio de los % de desempeño de cada mes del cuatrimestre, esto obedece a que por las temáticas o actividades algún colaborador pueda repetir más de una jornada. 3. La columna denominada "Desempeño Anual" corresponde al resultado promedio de cada uno de los cortes cuatrimestrales. | M5: MANEJO DE RESIDUOS SÓLIDO ÍNDICE ENTREGA DE MATERIAL APROVECHABLE | O5: 1. La información que aparece en la columna denominada "Resultado # Corte" en cada uno de los 3 cortes corresponde a la sumatoria individual de la información relacionada a la entrega y a la generación de residuos aprovechables. 2. Este índice no tiene metodología de cálculo por reporte mensual, para este caso la gestión se verá reflejada en la columna denominada "Desempeño Anual" sumando los registros mensuales de residuos de entrega dividido entre la suma de los registros mensuales de residuos generados. 3. En caso que se tengan residuos por gestionar de la vigencia anterior se deben relacionar en el mes de enero como residuos generados.
C6: MANEJO DE RESIDUOS SÓLIDOS ÍNDICE DISPOSICION FINAL DE RESIDUOS RAEES Y PELIGROSOS | D6: 1. La información que aparece en la columna denominada "Resultado # Corte" en cada uno de los 3 cortes corresponde a la sumatoria individual de la información relacionada a la entrega y a la generación de este tipo de residuos. 2. Este índice no tiene metodología de cálculo por reporte mensual, para este caso la gestión se verá reflejada en la columna denominada "Desempeño Anual" sumando los registros mensuales de residuos de entrega dividido entre la suma de los registros mensuales de residuos generados. 3. En caso que se tengan residuos por gestionar de la vigencia anterior se deben relacionar en el mes de enero como residuos generados. | M6: CONSUMO PAPEL | O6: 1. La línea base para este índice se determina de la siguiente manera: - Sumar los consumos mensuales de la vigencia 2019 para determinar el consumo cuatrimestral y de estos tres datos tomar el valor máximo, este valor será la linea base. 2. La información que se debe diligenciar mensualmente corresponde a los consumos del mes incluyendo la información de la regional y centros zonales. 3. Se realizará un seguimiento cuatrimestral, el cual se verá reflejado en la columna denominada "Resultado # Corte", este se determina como la suma de los consumos mensuales del cuatrimestre de la vigencia actual. 4. El calculo de cada uno de los cortes se reflejara en número. 5. La información de la columna "Desempeño Anual" se expresa en números de resmas de papel y corresponde a la sumatoria de cada uno de los resultados de los cortes cuatrimestrales, el cual para cumplir la meta deberá ser mayor o igual a la línea base.
A7: PROGRAMA DEL PGA | B7: OBJETIVO PROGRAMA PGA | C7: FORMULACIÓN | D7: FRECUENCIA DEL REPORTE | E7: META ANUAL | F7: DESCRIPCIÓN | G7: DATOS DE PROMEDIO/LíNEA BASE | H7: ENERO | I7: % DESEMPEÑO | J7: FEBRERO | K7: % DESEMPEÑO | L7: MARZO | M7: % DESEMPEÑO | N7: ABRIL | O7: % DESEMPEÑO | P7: RESULTADO I CORTE | Q7: MAYO | R7: % DESEMPEÑO | S7: JUNIO | T7: % DESEMPEÑO | U7: JULIO | V7: % DESEMPEÑO | W7: AGOSTO | X7: % DESEMPEÑO | Y7: RESULTADO II CORTE | Z7: SEPTIEMBRE | AA7: % DESEMPEÑO | AB7: OCTUBRE | AC7: % DESEMPEÑO | AD7: NOVIEMBRE | AE7: % DESEMPEÑO | AF7: DICIEMBRE | AG7: % DESEMPEÑO | AH7: RESULTADO III CORTE | AI7: DESEMPEÑO ANUAL | AJ7: ESTADO
A8: SENSIBILIZACION AMBIENTAL | B8: Regionales iguales o superior a 10 Centros Zonales Sensibilizar a los colaboradores y visitantes en buenas prácticas ambientales | C8: Número de colaboradores sensibilizados en Regional y CZ | D8: MENSUAL | E8: 0.15 | F8: Sensibilizar como mínimo el porcentaje de colaboradores propuestos en la meta | G8: 1579 | H8: 25 | I8: =+IFERROR(H8/H9,0) -> 0.01583280557 | J8: 0 | K8: =+IFERROR(J8/J9,0) -> 0 | L8: 220 | M8: =+IFERROR(L8/L9,0) -> 0.139328689 | N8: 0 | O8: =+IFERROR(N8/N9,0) -> 0 | P8: =+I8+K8+M8+O8 -> 0.1551614946 | R8: =+IFERROR(Q8/Q9,0) -> 0 | T8: =+IFERROR(S8/S9,0) -> 0 | V8: =+IFERROR(U8/U9,0) -> 0 | X8: =+IFERROR(W8/W9,0) -> 0 | Y8: =+R8+T8+V8+X8 -> 0 | AA8: =+IFERROR(Z8/Z9,0) -> 0 | AC8: =+IFERROR(AB8/AB9,0) -> 0 | AE8: =+IFERROR(AD8/AD9,0) -> 0 | AG8: =+IFERROR(AF8/AF9,0) -> 0 | AH8: =+AA8+AC8+AE8+AG8 -> 0 | AI8: =AVERAGE(P8,Y8,AH8) -> 0.05172049821 | AJ8: =+IF(AI8>=E8,"META CUMPLIDA","NO CUMPLE") -> NO CUMPLE
C9: Promedio de colaboradores de la vigencia anterior | H9: =+G8 -> 1579 | J9: =+G8 -> 1579 | L9: =+G8 -> 1579 | N9: =+G8 -> 1579 | Q9: =+G8 -> 1579 | S9: =+G8 -> 1579 | U9: =+G8 -> 1579 | W9: =+G8 -> 1579 | Z9: =+G8 -> 1579 | AB9: =+G8 -> 1579 | AD9: =+G8 -> 1579 | AF9: =+G8 -> 1579
B10: Regionales iguales o inferiores a 9 Centros Zonales Sensibilizar a los colaboradores y visitantes en buenas prácticas ambientales | C10: Número de colaboradores sensibilizados en Regional y CZ | D10: MENSUAL | E10: 0.25 | F10: Sensibilizar como mínimo el porcentaje de colaboradores propuestos en la meta | G10: 130 | H10: 0 | I10: =+IFERROR(H10/H11,0) -> 0 | J10: 26 | K10: =+IFERROR(J10/J11,0) -> 0.2 | L10: 90 | M10: =+IFERROR(L10/L11,0) -> 0.6923076923 | N10: 78 | O10: =+IFERROR(N10/N11,0) -> 0.6 | P10: =+AVERAGE(I10,K10,M10,O10) -> 0.3730769231 | Q10: 13 | R10: =+IFERROR(Q10/Q11,0) -> 0.1 | S10: 40 | T10: =+IFERROR(S10/S11,0) -> 0.3076923077 | U10: 12 | V10: =+IFERROR(U10/U11,0) -> 0.09230769231 | W10: 98 | X10: =+IFERROR(W10/W11,0) -> 0.7538461538 | Y10: =+AVERAGE(R10,T10,V10,X10) -> 0.3134615385 | Z10: 12 | AA10: =+IFERROR(Z10/Z11,0) -> 0.09230769231 | AC10: =+IFERROR(AB10/AB11,0) -> 0 | AE10: =+IFERROR(AD10/AD11,0) -> 0 | AG10: =+IFERROR(AF10/AF11,0) -> 0 | AH10: =+AVERAGE(AA10,AC10,AE10,AG10) -> 0.02307692308 | AI10: =+AVERAGE(P10,Y10,AH10) -> 0.2365384615 | AJ10: =+IF(AI10>=E10,"META CUMPLIDA","NO CUMPLE") -> NO CUMPLE
C11: Promedio de colaboradores de la vigencia anterior | H11: =+G10 -> 130 | J11: =+G10 -> 130 | L11: =+G10 -> 130 | N11: =+G10 -> 130 | Q11: =+G10 -> 130 | S11: =+G10 -> 130 | U11: =+G10 -> 130 | W11: =+G10 -> 130 | Z11: =+G10 -> 130 | AB11: =+G10 -> 130 | AD11: =+G10 -> 130 | AF11: =+G10 -> 130
A12: MANEJO DE RESIDUOS SÓLIDOS | B12: Disminuir la cantidad de residuos entregados a la empresa de servicios públicos de aseo, mediante estrategias de separación en la fuente y aprovechamiento de estos. | C12: Total kg de residuos sólidos aprovechados entregados al gestor | D12: MENSUAL | E12: 0.2 | F12: Gestionar como mínimo el porcentaje de residuos aprovechables propuestos en la meta | G12: N.A. | H12: 0 | I12: N.A. | J12: 0 | K12: N.A. | L12: 1200.8 | M12: N.A. | N12: 0 | O12: N.A. | P12: =+SUM(H12+J12+L12+N12) -> 1200.8 | Q12: 5 | R12: N.A. | S12: 599.2 | T12: N.A. | V12: N.A. | X12: N.A. | Y12: =+SUM(Q12+S12+U12+W12) -> 604.2 | Z12: 2074 | AA12: N.A. | AC12: N.A. | AE12: N.A. | AF12: 399.69 | AG12: N.A. | AH12: =+SUM(Z12+AB12+AD12+AF12) -> 2473.69 | AI12: =+IFERROR(SUM(P12+Y12+AH12)/SUM(P13+Y13+AH13),0) -> 0.4024638706 | AJ12: =+IF(AI12>=E12,"META CUMPLIDA","NO CUMPLE") -> META CUMPLIDA
C13: Total kg de residuos sólidos generados | G13: N.A. | H13: 750 | I13: N.A. | J13: 0 | K13: N.A. | L13: 2360.82 | M13: N.A. | N13: 0 | O13: N.A. | P13: =+SUM(H13+J13+L13+N13) -> 3110.82 | Q13: 5 | R13: N.A. | S13: 1630.4 | T13: N.A. | V13: N.A. | X13: N.A. | Y13: =+SUM(Q13+S13+U13+W13) -> 1635.4 | Z13: 4096 | AA13: N.A. | AC13: N.A. | AE13: N.A. | AF13: 1789.02 | AG13: N.A. | AH13: =+SUM(Z13+AB13+AD13+AF13) -> 5885.02
B14: Garantizar la disposición final de residuos RAEEs y peligrosos mediante su entrega a gestores ambientales y/o puntos autorizados | C14: Total Kg de residuos especiales y peligrosos entregados a los gestores ambientales para disposición final | D14: MENSUAL | E14: 0.55 | F14: Gestionar el 100% de los residuos RESPEL y RAEES generados | G14: N.A. | H14: 0 | I14: N.A. | J14: 644 | K14: N.A. | L14: 197.4 | M14: N.A. | N14: 41 | O14: N.A. | P14: =+SUM(H14+J14+L14+N14) -> 882.4 | Q14: 40.7 | R14: N.A. | S14: 114.7 | T14: N.A. | U14: 4 | V14: N.A. | W14: 53 | X14: N.A. | Y14: =+SUM(Q14+S14+U14+W14) -> 212.4 | Z14: 52 | AA14: N.A. | AB14: 0 | AC14: N.A. | AD14: 10 | AE14: N.A. | AF14: 8 | AG14: N.A. | AH14: =+SUM(Z14+AB14+AD14+AF14) -> 70 | AI14: =+SUM(P14+Y14+AH14)/SUM(P15+Y15+AH15) -> 0.6543452615 | AJ14: =+IF(AI14>=E14,"META CUMPLIDA","NO CUMPLE") -> META CUMPLIDA
C15: Total Kg de residuos especiales y peligrosos generados | G15: N.A. | H15: 644 | I15: N.A. | J15: 0 | K15: N.A. | L15: 841.4 | M15: N.A. | N15: 0 | O15: N.A. | P15: =+SUM(H15+J15+L15+N15) -> 1485.4 | Q15: 0 | R15: N.A. | S15: 114.7 | T15: N.A. | U15: 0 | V15: N.A. | W15: 0 | X15: N.A. | Y15: =+SUM(Q15+S15+U15+W15) -> 114.7 | Z15: 0 | AA15: N.A. | AB15: 80 | AC15: N.A. | AD15: 50 | AE15: N.A. | AF15: 50 | AG15: N.A. | AH15: =+SUM(Z15+AB15+AD15+AF15) -> 180
A16: CONSUMO PAPEL | B16: Implementar medidas que propendan por el ahorro y uso racional de los recursos agua, energía y papel Nota: Tener presente que agua y energía hacen parte del tablero de control. | C16: Línea base de resmas de papel definida para la Regional y Centros Zonales - Número de resmas de papel consumidas en el cuatrimestre evaluado | D16: MENSUAL | E16: =+G16-3 -> 2853 | F16: Consumir 3 resmas de papel menos de la línea base determinada con la información de la vigencia 2019. | G16: 2856 | H16: 397 | I16: N.A. | J16: 567 | K16: N.A. | L16: 49 | M16: N.A. | N16: 693 | O16: N.A. | P16: =+H16+J16+L16+N16 -> 1706 | Q16: 0 | R16: N.A. | S16: 0 | T16: N.A. | U16: 0 | V16: N.A. | W16: 512 | X16: N.A. | Y16: =+Q16+S16+U16+W16 -> 512 | Z16: 420 | AA16: N.A. | AB16: 150 | AC16: N.A. | AD16: 0 | AE16: N.A. | AF16: 50 | AG16: N.A. | AH16: =+Z16+AB16+AD16+AF16 -> 620 | AI16: =+P16+Y16+AH16 -> 2838 | AJ16: =+IF(AI16<=E16,"META CUMPLIDA","NO CUMPLE") -> META CUMPLIDA
A18: Antes de imprimir este documento… piense en el medio ambiente! Cualquier copia impresa de este documento se considera como COPIA NO CONTROLADA.
